Cogmind - Beta 14 --- EXPLORER MODE // 2024.09.02 @ 20:42:14 Player: DemonChuckle Result: Destroyed by G-34 Mercenary with Small Laser Performance ------------- Evolutions (1) 500 Regions Visited (3) 600 Robots Destroyed (59) 295 Value Destroyed (1662) 1662 Prototype IDs (3) 60 Alien Tech Used (0) 0 Bonus (361) 361 TOTAL SCORE: 3478 Bonus ------- High Alert Combat Kills 361 Cogmind --------- Core Integrity 0/400 Matter 5/300 Energy 415/415 System Corruption 1% Temperature Cool (63) Movement Flying (34) Location -9/Storage Parts ------- > --- POWER (2) -------- Ion Engine Improved Ion Engine > --- PROPULSION (4) --- Improved Flight Unit Improved Flight Unit Improved Flight Unit > --- UTILITY (2) ------ Improved Targeting Computer Core Shielding > --- WEAPON (2) ------- Mini Grenade Launcher Mini Grenade Launcher > --- INVENTORY (5) ---- Small Matter Pod (0) Mini Grenade Launcher Mini Grenade Launcher Welding Torch Plasma Cutter Peak State ------------ > --- POWER ------------ Improved Ion Engine Improved Ion Engine > --- PROPULSION ------- VTOL Module VTOL Module VTOL Module VTOL Module > --- UTILITY ---------- Weight Redist. System Improved Targeting Computer > --- WEAPON ----------- Improved EM Shotgun Plasma Cutter > --- INVENTORY -------- Improved Flight Unit Improved Flight Unit Sensor Array Mini Grenade Launcher Mini Grenade Launcher [Rating: 22] Favorites ----------- Power Improved Ion Engine Engine Improved Ion Engine Propulsion Flight Unit Treads Light Treads Leg Aluminum Leg Hover Unit Hover Unit Flight Unit Flight Unit Utility Improved Targeting Computer Device Weight Redist. System Storage Medium Storage Unit Processor Improved Targeting Computer Protection Core Shielding Weapon Mini Grenade Launcher Energy Gun EM Pulse Gun Ballistic Gun Improved Assault Rifle Launcher Mini Grenade Launcher Special Weapon Plasma Cutter Build | -11 -10 -9 -9 ------- Run | Yrd Mat Mat Sto Slots Evolved 3 | . 1 2 . Power 1 | . . 1 . Propulsion 2 | . 1 1 . Utility . | . . . . Weapon . | . . . . Parts Attached 63 | 9 13 9 32 Power 12 | 3 . 3 6 Engine 12 | 3 . 3 6 Core . | . . . . Reactor . | . . . . Propulsion 23 | 2 8 1 12 Treads 1 | . . . 1 Leg 5 | 2 3 . . Wheel . | . . . . Hover 2 | . 2 . . Flight 15 | . 3 1 11 Utility 6 | 2 1 2 1 Device 3 | 1 1 1 . Storage 1 | 1 . . . Processor 1 | . . 1 . Hackware . | . . . . Protection 1 | . . . 1 Artifact . | . . . . Weapon 22 | 2 4 3 13 Energy Gun 10 | 2 4 1 3 Energy Cannon . | . . . . Ballistic Gun 1 | . . . 1 Ballistic Cannon . | . . . . Launcher 8 | . . 2 6 Special Weapon 3 | . . . 3 Impact Weapon . | . . . . Slashing Weapon . | . . . . Piercing Weapon . | . . . . Special Melee Weapon . | . . . . Unidentified Prototypes 3 | . . . 3 Parts Lost 15 | . . . 15 Power 4 | . . . 4 Propulsion 7 | . . . 7 Utility . | . . . . Weapon 4 | . . . 4 Highest Loss Streak 10 | . . . 10 To Critical Strikes . | . . . . Average Slot Usage (%) 87 | . 93 96 83 Engine 14 | . 12 17 14 Leg 3 | . 21 . . Flight 29 | . 12 39 30 Device 8 | . 15 12 5 Storage 1 | . 8 . . Processor 8 | . . 7 10 Protection 2 | . . . 4 Energy Gun 9 | . 22 12 5 Launcher 7 | . . 7 9 Special Weapon 1 | . . . 2 Peak Build Rating 22 | 7 8 16 22 Average Rating 13 | 4 7 12 16 On Entrance 7 | . 7 8 16 Naked Turns . | . . . . Heaviest Build 19 | 17 17 18 19 Greatest Support 30 | 20 30 22 26 Greatest Overweight (x) 4 | . . 1 4 Average Overweight (x) . | . . . . Largest Inventory Capacity 10 | 10 10 5 5 Average Capacity 5 | 6 8 5 5 Most Carried 8 | 4 8 5 5 Average Carried 4 | 2 3 4 4 Final Capacity 10 | 10 5 5 5 Final Carried 5 | 2 2 4 5 Class Distribution -------------------- 52% | Hacker-Mutant 47% | Hacker-Sprinter Dominant Class ---------------- Hacker-Mutant | -10/Materials Hacker-Sprinter | -9/Materials Hacker-Sprinter | -9/Storage Resources | -11 -10 -9 -9 ----------- Run | Yrd Mat Mat Sto Matter Collected 1361 | 225 175 218 743 Remotely . | . . . . Salvage Created 1254 | . 235 99 920 Parts 92 | . 19 7 66 Haulers Intercepted 5 | . 2 . 3 Recyclers Shooed . | . . . . Parts Field Recycled . | . . . . Retrieved Matter . | . . . . Parts Self-Destructed . | . . . . Prevented . | . . . . Kills | -11 -10 -9 -9 ------- Run | Yrd Mat Mat Sto Combat Hostiles Destroyed 39 | . 2 6 31 Guns 5 | . 2 . 3 Cannons 1 | . . . 1 AOE 32 | . . 6 26 Classes Destroyed 11 | . 4 3 4 Worker 4 | . . . 4 Builder 3 | . . . 3 Hauler 5 | . 2 . 3 Recycler 1 | . 1 . . Mechanic 1 | . . . 1 Operator 2 | . . 1 1 Watcher 4 | . 1 1 2 Swarmer 6 | . 2 2 2 Grunt 19 | . . 3 16 Brawler 2 | . . . 2 Sentry 12 | . . 1 11 Best Kill Streak 13 | . 3 4 13 Combat Bots Only 9 | . 2 3 9 Max Kills in Single Turn 3 | . 1 2 3 Gunslinging . | . . . . Exploded 2 | . . 2 2 Melee . | . . . . Uniques/NPCs Destroyed . | . . . . Combat | -11 -10 -9 -9 -------- Run | Yrd Mat Mat Sto Hostile Shots Fired 240 | . 4 31 205 Missed 88 | . 2 8 78 Damage Taken 1561 | . 10 162 1389 Core 404 | . . 36 368 Absorbed by Shields . | . . . . Redirected to Shielding 18 | . . . 18 Ignored by Resistances 840 | . 7 109 724 Regen/Repaired (Parts) 41 | . . . 41 Core Remaining (%) 100 | 100 100 . . Volleys Fired 112 | . 15 16 81 Largest 2 | . 2 2 2 Hottest 83 | . 80 70 83 Shots Fired 180 | . 30 30 120 Gun 72 | . 30 14 28 Cannon . | . . . . Launcher 89 | . . 16 73 Special 19 | . . . 19 Kinetic . | . . . . Thermal 59 | . 15 . 44 Explosive 89 | . . 16 73 Electromagnetic 32 | . 15 14 3 Robot Hit Streak 27 | . 11 14 27 Robot Miss Streak 1 | . 1 1 1 Penetration Max . | . . . . Secondary Targets . | . . . . Shots Hit Robots 94 | . 21 6 67 Core Hits 109 | . 8 14 87 Critical Kills . | . . . . Critical Parts Destroyed . | . . . . Critical Strikes 3 | . . . 3 Burn 3 | . . . 3 Melee Attacks . | . . . . Impact . | . . . . Slashing . | . . . . Piercing . | . . . . Sneak Attacks . | . . . . Combat Hostiles . | . . . . Follow-up Attacks . | . . . . Damage Inflicted 4404 | . 300 691 3413 Guns 665 | . 300 82 283 Cannons . | . . . . Explosions 3633 | . . 609 3024 Melee . | . . . . Ramming . | . . . . Kinetic . | . . . . Thermal 474 | . 128 . 346 Explosive 3633 | . . 609 3024 Electromagnetic 297 | . 172 82 43 Impact . | . . . . Slashing . | . . . . Piercing . | . . . . Highest Corruption 1 | . . . 1 Average Corruption 1 | . . . 1 Corruption Purged . | . . . . Corruption Blocked . | . . . . Effects 1 | . . . 1 Misfires 1 | . . . 1 Overload Shots . | . . . . Overflow Damage 139 | . . 6 133 Projectiles . | . . . . Explosions 139 | . . 6 133 Melee . | . . . . Knockbacks . | . . . . Impact . | . . . . Kinetic . | . . . . Secondary . | . . . . Self-Inflicted Damage 56 | . . 4 52 Shots 4 | . . 1 3 Rammed . | . . . . Targets Rammed . | . . . . Kicked . | . . . . Crushed . | . . . . Highest Temperature 342 | . 179 342 202 Average Temperature 89 | . 68 210 53 Received Heat Transfer 774 | . . 84 690 Siege Activations . | . . . . Robots Corrupted . | . . . . Combat Hostiles . | . . . . Parts Fried . | . . . . Impact Corruptions . | . . . . Robots Melted 1 | . . . 1 Combat Hostiles 1 | . . . 1 Parts Melted 3 | . . . 3 Heat Transferred 1595 | . 300 . 1295 Parts Sabotaged . | . . . . Parts Stolen . | . . . . Parts Stripped . | . . . . Power Chain Reactions . | . . . . Alert | -11 -10 -9 -9 ------- Run | Yrd Mat Mat Sto Peak Influence 963 | . 114 432 963 Initial 130 | . . 34 130 Average 358 | . 63 170 502 Maximum Alert Level 3 | . . 2 3 Low Security (%) 48 | 100 100 58 29 Level 1 8 | . . 30 5 Level 2 19 | . . 10 28 Level 3 23 | . . . 36 Level 4 . | . . . . Level 5 . | . . . . High Security . | . . . . Max Security . | . . . . Squads Dispatched 13 | . 1 3 9 Investigation 6 | . 1 2 3 Extermination . | . . . . Reinforcement 4 | . . 1 3 Assault . | . . . . Garrison 3 | . . . 3 Intercept . | . . . . Searches Triggered . | . . . . Construction Impeded 1 | . . . 1 Haulers Reinforced . | . . . . Active Scanning Responses . | . . . . Cargo Convoy Interrupts . | . . . . Stealth | -11 -10 -9 -9 --------- Run | Yrd Mat Mat Sto Distress Signals 4 | . . . 4 Communications Jammed . | . . . . Distress Signals . | . . . . Times Spotted 57 | . 6 11 40 Peak Tracking Total 8 | . 3 5 8 Tactical Retreats 2 | . . 1 1 Traps | -11 -10 -9 -9 ------- Run | Yrd Mat Mat Sto Traps Triggered 1 | . . . 1 Indirectly . | . . . . Trap Hack Attempts . | . . . . Triggered . | . . . . Disarmed . | . . . . Reprogrammed . | . . . . Reused . | . . . . Traps Extracted . | . . . . Installed . | . . . . Triggered . | . . . . Machines | -11 -10 -9 -9 ---------- Run | Yrd Mat Mat Sto Machines Disabled 21 | . . 2 19 Max in Single Turn 2 | . . 1 2 Garrison Access 1 | . . . 1 Machines Repaired . | . . . . Machines Dismantled 3 | . . . 3 Machines Sabotaged . | . . . . Overloaded Fab Kills . | . . . . Hacking | -11 -10 -9 -9 --------- Run | Yrd Mat Mat Sto Machines Accessed 12 | . 3 2 7 Terminals 10 | . 3 2 5 Fabricators . | . . . . Repair Stations 1 | . . . 1 Recycling Units . | . . . . Scanalyzers . | . . . . Garrison Access 1 | . . . 1 Total Hacks 42 | . 11 5 26 Successful 22 | . 6 4 12 Failed 20 | . 5 1 14 Catastrophic 3 | . 1 1 1 Database Lockouts . | . . . . Manual . | . . . . Terminals 34 | . 11 5 18 Fabricators . | . . . . Repair Stations 6 | . . . 6 Recycling Units . | . . . . Scanalyzers . | . . . . Garrison Access 2 | . . . 2 Terminal Hacks 15 | . 6 4 5 Record 1 | . 1 . . Level Access Points 1 | . . 1 . Branch Access Points 2 | . . 1 1 Emergency Access Points 1 | . . 1 . Scanalyzer Index 1 | . . 1 . Unreport Threat 1 | . . . 1 Dispatch Records 2 | . 1 . 1 Maintenance Status 1 | . 1 . . Security Status 1 | . 1 . . Surveillance Status 1 | . . . 1 Patrol Status 1 | . . . 1 Assault Status 1 | . 1 . . Zone Layout 1 | . 1 . . Fabricator Hacks . | . . . . Repair Station Hacks 6 | . . . 6 Scan Component 3 | . . . 3 Repair 3 | . . . 3 Recycling Unit Hacks . | . . . . Scanalyzer . | . . . . Garrison Access Hacks 1 | . . . 1 Seal Access 1 | . . . 1 Unauthorized Hacks . | . . . . Terminals . | . . . . Fabricators . | . . . . Repair Stations . | . . . . Recycling Units . | . . . . Scanalyzers . | . . . . Garrison Access . | . . . . Data Cores Recovered . | . . . . Used . | . . . . Hacking Detections 10 | . 3 2 5 Full Trace Events 9 | . 3 2 4 Feedback Events . | . . . . Feedback Blocked . | . . . . Robot Schematics Acquired . | . . . . Robots Built . | . . . . Authchips . | . . . . Time . | . . . . Total Robot Build Rating . | . . . . Part Schematics Acquired . | . . . . Parts Built . | . . . . Authchips . | . . . . Time . | . . . . Total Part Build Rating . | . . . . Parts Repaired 3 | . . . 3 Time 84 | . . . 84 Parts Recycled . | . . . . Recycled Matter . | . . . . Retrieved Matter . | . . . . Retrieved Components . | . . . . Parts Scanalyzed . | . . . . Part Schematics Acquired . | . . . . Parts Damaged . | . . . . Bothacking | -11 -10 -9 -9 ------------ Run | Yrd Mat Mat Sto Used RIF Installer . | . . . . Robots Hacked . | . . . . Non-combat . | . . . . Combat . | . . . . Robot Hacks Applied . | . . . . Relay Couplers Released . | . . . . Fabnet Peak Effective % . | . . . . Robots Rewired . | . . . . Allies Hacked . | . . . . Hacks Repelled . | . . . . Allies | -11 -10 -9 -9 -------- Run | Yrd Mat Mat Sto Total Allies . | . . . . Largest Group . | . . . . Highest-Rated Group . | . . . . Highest-Rated Ally . | . . . . Total Orders . | . . . . Ally Attacks . | . . . . Total Damage . | . . . . Kills . | . . . . Allies Corrupted . | . . . . Allies Melted . | . . . . Intel | -11 -10 -9 -9 ------- Run | Yrd Mat Mat Sto Robot Analysis Total . | . . . . Derelict Logs Recovered . | . . . . Drone Launches . | . . . . Drone Recoveries . | . . . . Exploration | -11 -10 -9 -9 ------------- Run | Yrd Mat Mat Sto Turns Passed 1186 | 64 179 182 761 Spaces Moved 1382 | 44 151 288 899 Core 88 | 10 . . 78 Treads 12 | . . . 12 Legs 101 | 34 67 . . Wheels . | . . . . Hover . | . . . . Flight 1181 | . 84 288 809 Fastest Speed 26 | 50 34 29 26 Average Speed 42 | 104 72 30 38 Slowest Speed 250 | 120 120 109 250 Overloaded Moves . | . . . . Propulsion Burnouts . | . . . . Robots Hopped 6 | . . 3 3 Cave-ins Triggered 1 | . . . 1 Exploration Rate (%) 37 | 5 30 37 77 Regions Visited 3 Branch Regions 1 Pre-discovered Areas . | . . . . Known Exits Taken 3 | 1 1 1 . Unknown Exits Taken . | . . . . Scrap Searched . | . . . . Spaces Dug . | . . . . Terrain Destroyed 500 | . . 87 413 Melee . | . . . . Projectile . | . . . . AOE 500 | . . 87 413 Terrain Rammed . | . . . . Walls Destroyed . | . . . . Machines Disabled . | . . . . Actions | -11 -10 -9 -9 --------- Run | Yrd Mat Mat Sto Total 1757 | 61 191 351 1154 Wait 120 | . . 24 96 Move 1367 | 43 150 281 893 Hop 6 | . . 3 3 Pick Up 46 | 9 6 9 22 Fast Attach 8 | . . 1 7 Attach 33 | 7 8 4 14 Detach 7 | . 6 1 . Swap 22 | 2 5 4 11 Drop 24 | . 1 8 15 Fire 112 | . 15 16 81 Melee . | . . . . Ram . | . . . . Kick . | . . . . Crush . | . . . . Escape Stasis . | . . . . Rewire . | . . . . Trap . | . . . . Miscellaneous 12 | . . . 12 Route ------- -11/Scrapyard -10/Materials -9/Materials (discovered 6 exits: Mat x3 / *Min x2 / *Sto) -9/Storage (discovered 1 exit: Rec) History --------- Turn | Location | Event 7 | -11/Scrapyard | Identified exit to Materials 7 | -11/Scrapyard | Discovered exit to Materials (range 16) 65 | -11/Scrapyard | Entered Materials 65 | -10/Materials | Evolved 1 slot: Propulsion x1 239 | -10/Materials | Identified exit to Materials 239 | -10/Materials | Discovered exit to Materials (range 15) 244 | -10/Materials | Entered another Materials area 244 | -9/Materials | Evolved 2 slots: Power x1, Propulsion x1 302 | -9/Materials | Identified exit to Materials 355 | -9/Materials | Identified exit to Mines 355 | -9/Materials | Discovered exit to Mines (range 11) 372 | -9/Materials | Identified exit to Storage 426 | -9/Materials | Entered Storage 464 | -9/Storage | Repaired VTOL Module 492 | -9/Storage | Repaired Flight Unit 520 | -9/Storage | Repaired Flight Unit 661 | -9/Storage | Crushed by falling debris 720 | -9/Storage | Identified exit to Recycling 775 | -9/Storage | Garrison activated, responded to threat 799 | -9/Storage | Core integrity fell below 50% 805 | -9/Storage | Destroyed 9 combat bots 858 | -9/Storage | Lost 10 parts (2p5n3w) 882 | -9/Storage | Core integrity fell below 20% 1187 | -9/Storage | Destroyed by G-34 Mercenary with Small Laser Last Messages --------------- 01165_ Acquired 25 matter. 01165_ K-01 Serf collects debris. 01166_ Acquired 19 matter. 01167_ Acquired 17 matter. 01170_ Connecting with Terminal... >>Enumerate(Surveillance) Retrieving latest reported positions... No active surveillance squads found. 01170_ ALERT: Suspicious activity at Terminal S010. Dispatching Investigation squad. 01171_ ALERT: Hostiles spotted, dispatching reinforcements to Terminal S009. 01173_ K-01 Serf collects debris. 01175_ G-34 Mercenary destroyed. 01176_ K-01 Serf collects debris. 01178_ Transfer Shaft disabled. 01181_ K-01 Serf collects debris. 01181_ Transfer Shaft disabled. 01181_ G-34 Mercenary destroyed. 01185_ K-01 Serf collects debris. Map ----- +----------------------------------------------------+ | ??????????????????????????????############ # | | ??????????????????????????????????????# | | ??????????????????????????????????????# | | ??????????????????????????????????????# | | ????????????????????????????###??##?#### # | | ???????????????????????????## ### ### # | | ?????????????????????????### # # | | ?????????????????????????#"" # | | ?????????????????????????#"T # ## | | ?????????????????????????#"" | | ?????????????????????????### # | | ???????????????????????????# # # | | ???????????????????########## # # | | ???????????????????# + # #### ##### # | | ???????????????????# """ ## ######??###????## | | ???????????????????# " " = ## #??????????? | | ???????????????????# * #??????????? | | ??????????????????## = ## #??????????? | | ??????????????????# Y #####??????????? | | ??????????????????## #?????????????? | | ??????????????????## #????????????#+ | | ??????????????????# #????????????# | | ???????????###+##### #????????????# | | ?????????? * [ #????????????# | | ?????????? == #???????????## | | ?????????? g g @ k #####/##+##### | | ????????????????### ### | | ??????????????????# ?###/####### | | ??????????????????## ?# # | | ???????????????????# """ # + | | ???????????????????# """ # # #####+#### | | ???????????????????# """ # """"" # #??? ! ??# | | ???????????????????# """ # """"" # ???] ??+ | | ???????????????????Y ???" # """"" # ##?! ?# | | ??????????????????##???? # # #??! ?# | | ???????????????????????? # # #?# + | | ????????????????????????#########+##### #?# ? | | ??????????????????????????????????????# #?######## | | ??????????????????????????????????????? ?????????? | | ???????????????????????????????????????#?????????? | | ?????????????????????????????????????????????????? | | ?????????????????????????????????????????????????? | | ?????????????????????????????????????????????????? | | ?????????????????????????????????????????????????? | | ?????????????????????????????????????????????????? | | | | | | | | | | | +----------------------------------------------------+ Best States ------------- Heat Dissipation 28 Energy Generation 19 Energy Capacity 430 Matter Stores 300 Matter Capacity 300 Sight Range 16 Terrain Scan Range 14 Terrain Scan Density 10 Additional Mass Support 6 Resistance: KI 35 Resistance: TH 35 Resistance: EX 35 Resistance: EM 35 Resistance: I 35 Resistance: S 35 Resistance: P 35 Core Shielding 20 Evasion (%) 64 Targeting Accuracy 6 Recoil Reduction 1 Offensive Hacking 20 Item Schematics ----------------- None Robot Schematics ------------------ None Fabricated ------------ Nothing Alien Tech Used ----------------- None Achievements -------------- None Challenges ------------ None Game ------ Seed CompactConstructKit Manual? 0 Play Time 00:34:07 Cumulative 228.6 hours Start 2024.09.02 @ 20:09:14 End 2024.09.02 @ 20:42:14 Sessions 1 Manual Loads 0 Difficulty Explorer Special Mode None Game No. 21 Rogue 0 Adventurer 2 Explorer 19 Win Type - Total 2 Types 0/2/0/0/0/0/0/0/0 Lore% 26 Gallery% 52 Achievement% 48 Wizard Run 0 Options --------- Layout 1 ASCII 0 Keyboard 0 Movement Mouse Keybinds 0 Fullscreen 2 Font 24/Smallcaps Map View 50x35 Zoom Use 3% Tactical HUD 1 Map Filters NONE Filters NONE Steam 1 RUN: 57797d79-bb11-4467-9820-a8fd998c976d